[Event "GCT 11th Sinquefield Cup 2024"]
[Site "Saint Louis"]
[Date "2024.08.25"]
[Round "6.2"]
[White "Gukesh D"]
[Black "Vachier-Lagrave, Maxime"]
[Result "1/2-1/2"]
[ECO "B90"]
[WhiteElo "2766"]
[BlackElo "2721"]
[Annotator "TA"]
[PlyCount "144"]
[EventDate "2024.08.09"]
[EventType "tourn"]
[EventCountry "USA"]
[SourceTitle "playchess.com"]
[Source "ChessBase"]
[SourceQuality "1"]
[TimeControl "7200+30"]

{[%evp 89,143,-22,-22,-26,-30,-22,-22,-22,-22,-26,-26,-28,-30,-30,-36,-28,-30,-22,-24,-24,-24,-24,-24,-24,-24,-153,-153,-153,-153,-153,-153,-153,-153,-153,-153,-153,-153,-153,-24,-153,0,0,0,0,0,0,0,0,0,0,0,0,0,0,0,0]} 1. e4 {[%emt 0:00:04]} c5 {[%emt 0:00:04]} 2. Nf3 {[%emt 0:00:06]} d6 {[%emt 0:00:03]} 3. d4 {[%emt 0:00:06]} cxd4 {[%emt 0:00:03]} 4. Nxd4 {[%emt 0:00:04]} Nf6 {[%emt 0:00:06]} 5. Nc3 {[%emt 0:00:05]} a6 {[%emt 0:00:02]} 6. Bd3 {[%emt 0:00:07]} e5 {[%emt 0:00:42]} 7. Nde2 {[%emt 0:00:08]} Nc6 {[%emt 0:00:08]} 8. Be3 {[%emt 0:08:29]} Be6 {[%emt 0:04:42]} 9. f4 {[%emt 0:09:42]} exf4 {[%emt 0:01:05]} 10. Nxf4 {[%emt 0:00:06]} Ne5 {[%emt 0:00:09]} 11. O-O {[%emt 0:01:23]} Be7 {[%emt 0:00:43]} 12. Bd4 {[%emt 0:10:40]} Rc8 {[%emt 0:03:29]} 13. h3 {[%emt 0:08:47]} O-O {[%emt 0:00:55]} 14. Nce2 {[%emt 0:01:51]} Bd7 {[%emt 0:07:12]} 15. Qe1 {[%emt 0:04:01]} Bc6 {[%emt 0:02:13]} 16. Rd1 {[%emt 0:02:13]} Re8 {[%emt 0:03:13]} 17. Ng3 {[%emt 0:18:48]} g6 {[%emt 0:13:57]} 18. Bxa6 {[%emt 0:12:42]} Nfd7 {[%emt 0:10:12]} 19. Bd3 {[%emt 0:01:39]} Bh4 {[%emt 0:00:07]} 20. Nfe2 {[%emt 0:07:11]} Nc5 {[%emt 0:07:54]} 21. Nc3 {[%emt 0:12:27]} Ne6 {[%emt 0:10:08]} 22. Be3 {[%emt 0:00:22]} Ng7 {[%emt 0:01:12]} 23. Be2 {[%emt 0:01:44]} f5 {[%emt 0:04:41]} 24. Bf2 {[%emt 0:10:36]} f4 {[%emt 0:03:00]} 25. Nh1 {[%emt 0:00:09]} Bg5 {[%emt 0:08:42]} 26. Bd4 {[%emt 0:01:00]} Bh4 {[%emt 0:06:21]} 27. Qd2 {[%emt 0:01:25]} Ne6 {[%emt 0:00:08]} 28. Nf2 {[%emt 0:06:13]} Nxd4 {[%emt 0:03:48]} 29. Qxd4 {[%emt 0:00:01]} Qg5 {[%emt 0:00:56]} 30. Nd3 {[%emt 0:00:29]} Bg3 {[%emt 0:00:06]} 31. Nxe5 {[%emt 0:01:34]} dxe5 {[%emt 0:00:10]} 32. Qb6 {[%emt 0:02:19]} Kh8 {[%emt 0:05:51]} 33. Bb5 {[%emt 0:04:39]} Red8 {[%emt 0:01:54]} 34. Bxc6 {[%emt 0:01:34]} bxc6 {[%emt 0:00:06]} 35. Ne2 {[%emt 0:02:53]} Bh4 {[%emt 0:00:44]} 36. Rxd8+ {[%emt 0:00:36]} Qxd8 {[%emt 0:02:27]} 37. Qxd8+ {[%emt 0:00:02]} Rxd8 {[%emt 0:00:11]} 38. Rc1 {[%emt 0:00:28]} Rd2 {[%emt 0:03:12]} 39. Kf1 {[%emt 0:00:12]} g5 {[%emt 0:00:05]} 40. a4 {[%emt 0:02:34]} h5 {[%emt 0:00:05]} 41. a5 {[%emt 0:00:23]} g4 {[%emt 0:00:06]} 42. hxg4 {[%emt 0:00:17]} hxg4 {[%emt 0:00:05]} 43. a6 {[%emt 0:00:38]} f3 {[%emt 0:00:05]} 44. gxf3 {[%emt 0:00:04]} gxf3 {[%emt 0:00:06]} 45. Nc3 {[%emt 0:01:23]} Rh2 {[%emt 0:07:56]} 46. Kg1 {[%emt 0:00:04]} Bg3 {[%emt 0:00:04]} 47. a7 $1 {[%emt 0:01:03]} f2+ {[%emt 0:00:06]} (47... Rg2+ $2 48. Kf1 Rf2+ 49. Ke1 Rh2+ 50. Kd1 $18) 48. Kf1 {[%emt 0:00:02]} Rh1+ {[%emt 0:00:04]} 49. Kg2 {[%emt 0:00:08]} Rxc1 {[%emt 0:00:05]} 50. a8=Q+ {[%emt 0:00:03]} (50. a8=B Rg1+ (50... f1=R $2 51. Bxc6 Rg1+ 52. Kf3 $19) 51. Kh3 f1=Q+ (51... f1=B+ $2 52. Kg4 $19) 52. Kg4 Be1+ 53. Kh5 Qh3#) 50... Kg7 {[%emt 0:00:09]} 51. Qb7+ {[%emt 0:01:52]} (51. Kxg3 $2 f1=Q (51... f1=N+ $2 52. Kf2 $18) 52. Qb7+ Kg6 (52... Qf7 $2 53. Qxf7+ Kxf7 54. b3 $19) 53. Qxc6+ Kg5 $19) 51... Kg6 {[%emt 0:00:13]} 52. Qxc6+ {[%emt 0:00:12]} (52. Kxg3 $2 f1=Q (52... f1=B 53. Qxc6+ Kh5 54. Nd5 $18) 53. Qxc6+ Kg5 $19) 52... Kg5 $1 {[%emt 0:00:04]} 53. Qc4 $1 {[%emt 0:00:16]} (53. Kxg3 $2 {loses.} f1=Q (53... f1=R $2 54. Ne2 $18) 54. Qb5 Qg1+ (54... Qf4+ {leads to mate.} 55. Kg2 Rxc2+ 56. Qe2 Rxe2+ 57. Nxe2 Qxe4+ 58. Kf2 Kg4 59. Nc1 Qd4+ 60. Ke2 Qxb2+ 61. Ke3 Qxc1+ 62. Ke4 Qc5 63. Kd3 Kf3 64. Kd2 e4 65. Kd1 e3 66. Ke1 Qc1#) 55. Kf3 Rf1+ $19 (55... Rxc2 56. Qxe5+ Kg6 57. Qe6+ Kh7 58. Qh3+ Kg7 59. Ne2 $11) (55... Rxc2 56. Qxe5+ Kg6 57. Qe8+ Kh7 58. Qh5+ Kg8 59. Ne2 $11)) (53. Nd1 Rxd1 54. Qc4 Rg1+ (54... f1=Q+ $2 55. Qxf1 Rxf1 56. Kxf1 $19) 55. Kf3 f1=Q+ (55... f1=B $2 56. Qg8+ Kh6 57. Qe8 $18) 56. Qxf1 Rxf1+ 57. Ke3 Rb1 58. b3 Kg4 59. Kd3 Kf4 (59... Rd1+ 60. Kc4 Kf3 61. Kc5 Kxe4 62. Kc4 Kf3 63. b4 e4 64. b5 e3 65. b6 e2 66. b7 e1=Q 67. b8=Q Bxb8 68. Kb3 Rb1+ 69. Kc4 Rb4+ 70. Kc5 Qe7+ 71. Kd5 Qd6#) 60. c3 Rxb3 (60... Rd1+ 61. Kc2 Kxe4 62. b4 Rd8 63. b5 Kf3 64. c4 e4 65. c5 e3 66. c6 e2 67. c7 Bxc7 68. Kb3 e1=Q 69. Kc4 Qe4+ 70. Kb3 Qe3+ 71. Kc4 Rd4+ 72. Kc5 Qc3#) 61. Kc4 Rxc3+ 62. Kxc3 Kxe4 63. Kc4 Kf3 64. Kb4 e4 65. Kc3 e3 66. Kd4 e2 67. Kd5 e1=Q (67... e1=B $2 68. Kd4 $19) 68. Kc5 Qa5+ 69. Kc6 Qf5 70. Kb6 Qd5 71. Ka6 Qc6+ 72. Ka7 Qb5 73. Ka8 Qb8#) 53... Rg1+ {[%emt 0:00:06]} (53... f1=R $2 {perishes.} 54. Kxg3 Rf8 55. Qc5 $18) 54. Kh3 $1 {[%emt 0:00:10]} f1=Q+ {[%emt 0:00:23]} 55. Qxf1 {[%emt 0:00:01]} Rxf1 {[%emt 0:00:10]} 56. Kxg3 {[%emt 0:00:02]} Rc1 {[%emt 0:00:13]} 57. Kf3 {[%emt 0:02:19]} (57. Nd5 $11 {remains equal.}) 57... Rxc2 $17 {[%emt 0:00:08]} 58. Nd1 {[%emt 0:00:08]} Rd2 {[%emt 0:01:28]} 59. Nf2 {[%emt 0:00:02]} Rxb2 {[%emt 0:00:08]} 60. Nd3 {[%emt 0:00:10]} Rb5 {[%emt 0:00:11]} 61. Ke3 {[%emt 0:00:30]} Kg4 {[%emt 0:00:21]} 62. Ke2 {[%emt 0:00:18]} Ra5 {[%emt 0:00:08]} 63. Ke3 {[%emt 0:00:09]} Ra3 {[%emt 0:00:52]} ({Better is} 63... Kg5 $17 64. Kf2 Kf6) 64. Ke2 {[%emt 0:00:05] [#]} (64. Kd2 $1 $11 {was the only way to keep the balance.}) 64... Rxd3 $2 {[%emt 0:00:27]} (64... Ra2+ $1 $17 {[%mdl 512]} 65. Ke3 Ra5 (65... Ra3 $2 66. Ke2 $17)) 65. Kxd3 $11 {[%emt 0:00:02]} Kf3 {[%emt 0:00:06]} (65... Kf4 $5) 66. Kd2 {[%emt 0:00:02]} Kxe4 {[%emt 0:00:04]} 67. Ke2 {[%emt 0:00:02]} Kd4 {[%emt 0:00:02]} 68. Kd2 {[%emt 0:00:03]} e4 {[%emt 0:00:02]} 69. Ke2 {[%emt 0:00:05]} e3 {[%emt 0:00:01]} (69... Kc3 $5) 70. Ke1 {[%emt 0:00:04]} Kd3 {[%emt 0:00:01]} 71. Kd1 {[%emt 0:00:04]} e2+ {[%emt 0:00:01]} 72. Ke1 {[%emt 0:00:04]} Ke3 {[%emt 0:00:01]} 1/2-1/2

[Event "GCT 11th Sinquefield Cup 2024"]
[Site "Saint Louis"]
[Date "2024.08.25"]
[Round "6.3"]
[White "So, Wesley"]
[Black "Firouzja, Alireza"]
[Result "1/2-1/2"]
[ECO "D91"]
[WhiteElo "2751"]
[BlackElo "2751"]
[Annotator "TA"]
[PlyCount "64"]
[EventDate "2024.08.09"]
[EventType "tourn"]
[EventCountry "USA"]
[SourceTitle "playchess.com"]
[Source "ChessBase"]
[SourceQuality "1"]
[TimeControl "7200+30"]

{[%evp 10,64,8,4,10,2,19,20,29,0,0,0,0,0,0,4,22,22,16,0,27,0,0,0,0,0,0,0,0,0,0,0,0,0,0,0,0,0,0,0,0,0,0,0,0,0,0,0,0,0,0,0,0,0,0,0,0]} 1. d4 {[%emt 0:00:03]} Nf6 {[%emt 0:00:04]} 2. c4 {[%emt 0:00:25]} g6 {[%emt 0:00:05]} 3. Nc3 {[%emt 0:00:30]} d5 {[%emt 0:00:05]} 4. Bg5 {[%emt 0:01:54][%cal Bc1g5,Bg5f4,Bf4e5][%mdl 32]} Bg7 {[%emt 0:09:01]} 5. Nf3 {[%emt 0:00:36]} Ne4 {[%emt 0:01:11]} 6. Bf4 {[%emt 0:00:08]} O-O {[%emt 0:01:15]} 7. e3 {[%emt 0:04:13]} c5 {[%emt 0:00:53]} 8. cxd5 {[%emt 0:00:06]} Bf5 {[%emt 0:00:24]} 9. Be5 {[%emt 0:01:00]} Nxc3 {[%emt 0:04:13]} 10. bxc3 {[%emt 0:00:05]} Qxd5 {[%emt 0:01:33]} 11. Qb3 {[%emt 0:01:21]} Qxb3 {[%emt 0:03:10]} 12. axb3 {[%emt 0:00:06]} Nd7 {[%emt 0:05:56][%cal Bb8d7,Bd7f6,Bf6e4][%mdl 32]} 13. Bxg7 {[%emt 0:09:57]} Kxg7 {[%emt 0:00:30]} 14. Bb5 {[%emt 0:00:32]} Nf6 {[%emt 0:36:37]} 15. dxc5 {[%emt 0:01:10]} a6 {[%emt 0:01:14] The position is equal.} 16. Bc4 {[%emt 0:02:27]} Ne4 {[%emt 0:08:43][%csl LRc3,LRc5]} 17. b4 {[%emt 0:03:47]} a5 {[%emt 0:04:30] [#] And now ...axb4 would win.} 18. O-O {[%emt 0:22:36]} Nxc3 {[%emt 0:00:31]} 19. bxa5 {[%emt 0:03:31] Strongly threatening Rfc1.} Rfc8 {[%emt 0:02:14]} 20. Rfc1 {[%emt 0:06:55]} Ne4 {[%emt 0:01:36]} 21. Bd5 {[%emt 0:00:52]} Rxc5 {[%emt 0:01:53]} 22. Bxb7 {[%emt 0:03:18]} Raxa5 {[%emt 0:00:14]} 23. Nd4 {[%emt 0:00:15]} Rxa1 {[%emt 0:00:33]} 24. Rxa1 {[%emt 0:00:05]} Nd6 {[%emt 0:00:03]} 25. Nxf5+ {[%emt 0:00:19]} Rxf5 $11 {[%emt 0:00:22][%mdl 4096] Endgame. KRB-KRN} 26. Bf3 {[%emt 0:00:16]} Rc5 {[%emt 0:00:05]} 27. g3 {[%emt 0:00:10]} Rc7 {[%emt 0:00:25]} 28. h4 {[%emt 0:00:04]} h5 {[%emt 0:00:07]} 29. Rd1 {[%emt 0:00:08]} Rc5 {[%emt 0:00:12]} 30. Ra1 {[%emt 0:00:05]} Rc7 {[%emt 0:00:03]} 31. Rd1 {[%emt 0:00:02]} Rc5 {[%emt 0:00:04]} 32. Ra1 {[%emt 0:00:03]} Rc7 {[%emt 0:00:04] An interesting draw.   Weighted Error Value: White=0.04 (flawless) /Black=0.04 (flawless) .  Inaccurate:     	White=2     	Black=1      OK:         	White=8     	Black=9      Best:        	---       	Black=3} 1/2-1/2

[Event "GCT 11th Sinquefield Cup 2024"]
[Site "Saint Louis"]
[Date "2024.08.25"]
[Round "6.4"]
[White "Nepomniachtchi, Ian"]
[Black "Caruana, Fabiano"]
[Result "0-1"]
[ECO "B76"]
[WhiteElo "2767"]
[BlackElo "2793"]
[Annotator "TA"]
[PlyCount "50"]
[EventDate "2024.08.09"]
[EventType "tourn"]
[EventCountry "USA"]
[SourceTitle "playchess.com"]
[Source "ChessBase"]
[SourceQuality "1"]
[TimeControl "7200+30"]

{[%evp 16,50,31,20,38,18,28,2,8,18,20,0,38,44,48,14,34,0,0,-17,0,-215,-206,-199,-217,-203,-209,-222,-199,-285,-266,-493,-488,-683,-681,-760,-664]} 1. e4 {[%emt 0:00:08]} c5 {[%emt 0:00:04]} 2. Nf3 {[%emt 0:00:05]} g6 {[%emt 0:00:04]} 3. d4 {[%emt 0:00:53]} cxd4 {[%emt 0:01:21]} 4. Nxd4 {[%emt 0:00:06]} Bg7 {[%emt 0:00:05]} 5. Nc3 {[%emt 0:00:05]} Nc6 {[%emt 0:00:28]} 6. Be3 {[%emt 0:00:06]} Nf6 {[%emt 0:00:24]} 7. Bc4 {[%emt 0:00:06]} O-O {[%emt 0:00:28][%cal Bh8f8,Bf8c8,Bc8c4][%mdl 32]} 8. Bb3 {[%emt 0:00:05]} d6 {[%emt 0:01:18]} 9. f3 {[%emt 0:00:05]} Qa5 {[%emt 0:02:13]} 10. Qd3 {[%emt 0:00:25]} Ne5 {[%emt 0:19:36]} 11. Qd2 {[%emt 0:01:09]} Bd7 {[%emt 0:00:45] The position is equal.} 12. O-O-O {[%emt 0:00:11]} Rfc8 {[%emt 0:03:53]} 13. Kb1 {[%emt 0:00:09]} (13. Rhe1 $5) 13... Nc4 {[%emt 0:01:27]} 14. Bxc4 {[%emt 0:00:07]} Rxc4 {[%emt 0:00:03]} 15. g4 {[%emt 0:05:45]} Be6 {[%emt 0:21:03][%cal Oc4c3]} (15... Rac8 {feels hotter.} 16. g5 Ne8 17. Nd5 Qd8) 16. Nb3 {[%emt 0:00:57]} Qa6 {[%emt 0:07:00]} 17. Bd4 {[%emt 0:01:08]} Rac8 {[%emt 0:01:55][%cal Of6e4] ...Nxe4! would now be deadly.} 18. g5 $2 {[%emt 0:00:06] [#]} (18. Qg5 $11 {and White is okay.}) 18... Nxe4 $1 $19 {[%emt 0:18:56][%mdl 512]} 19. fxe4 {[%emt 0:17:14] [#] Strongly threatening Bxg7.} (19. Nxe4 $2 {too greedy.} Rxd4 (19... Rxc2 20. Qd3 $11) 20. Qxd4 (20. Nxd4 $2 Qxa2+ 21. Kc1 Qa1#) 20... Bxd4 (20... Bxb3 $2 21. axb3 Bxd4 22. Rxd4 $19) 21. Rxd4 h5 $19) 19... Bxd4 {[%emt 0:00:27]} 20. Nxd4 {[%emt 0:00:06] [#]} Rxc3 $1 {[%emt 0:00:02][%mdl 512]} 21. a3 {[%emt 0:00:33] [#]} (21. Nxe6 Rxc2) 21... Qc4 {[%emt 0:04:04]} 22. b3 {[%emt 0:00:07]} (22. Qxc3 $2 {loses.} Qa2+ 23. Kc1 Rxc3 24. bxc3 Qxa3+ 25. Kd2 Bc4 $19) (22. Nxe6 $142 Rxc2 23. Qd5 fxe6 24. Qxb7) 22... Qc5 {[%emt 0:00:33]} 23. Rc1 $2 {[%emt 0:00:05]} (23. a4 {was worth a try.}) 23... Qxa3 {[%emt 0:05:28] Black is clearly winning.} 24. h4 {[%emt 0:02:25]} R8c5 {[%emt 0:03:07][%cal Oc5a5] ( -> ...Ra5!)} 25. Rcf1 {[%emt 0:00:50] [#]} Bxb3 $1 {[%emt 0:00:29][%mdl 512] Weighted Error Value: White=0.73/Black=0.04 (flawless) .  Loses game:     	White=1     	---        Mistake:       	White=2     	---        Inaccurate:     	White=4     	Black=1      OK:         	White=1     	Black=7      Best:        	---       	Black=2      Brilliant:      	---       	Black=2} 0-1

[Event "GCT 11th Sinquefield Cup 2024"]
[Site "Saint Louis"]
[Date "2024.08.25"]
[Round "6.5"]
[White "Giri, Anish"]
[Black "Abdusattorov, Nodirbek"]
[Result "1/2-1/2"]
[ECO "A24"]
[WhiteElo "2746"]
[BlackElo "2762"]
[Annotator "TA"]
[PlyCount "112"]
[EventDate "2024.08.09"]
[EventType "tourn"]
[EventCountry "USA"]
[SourceTitle "playchess.com"]
[Source "ChessBase"]
[SourceQuality "1"]
[TimeControl "7200+30"]

{[%evp 56,112,153,151,148,160,138,142,181,174,164,166,170,170,162,172,163,166,159,141,254,186,218,174,171,121,119,118,127,118,127,115,99,48,70,64,181,38,33,0,0,0,0,0,0,0,0,0,0,0,0,0,0,0,0,0,0,0,0]} 1. Nf3 {[%emt 0:00:02]} Nf6 {[%emt 0:00:12]} 2. g3 {[%emt 0:00:04]} g6 {[%emt 0:02:40]} 3. Bg2 {[%emt 0:01:49]} Bg7 {[%emt 0:00:05]} 4. c4 {[%emt 0:00:20]} d6 {[%emt 0:00:08]} 5. O-O {[%emt 0:01:38]} O-O {[%emt 0:00:08]} 6. Nc3 {[%emt 0:00:27]} e5 {[%emt 0:00:11]} 7. d3 {[%emt 0:00:44]} Bd7 {[%emt 0:03:12]} 8. b4 {[%emt 0:04:44]} Qc8 {[%emt 0:00:32]} 9. Bg5 {[%emt 0:04:40]} Bh3 {[%emt 0:04:30]} 10. Qd2 {[%emt 0:04:24]} Bxg2 {[%emt 0:06:32]} 11. Kxg2 {[%emt 0:00:10]} Nh5 {[%emt 0:00:09]} 12. Rac1 {[%emt 0:04:11]} f5 {[%emt 0:10:04]} 13. Bh6 {[%emt 0:26:22]} Bxh6 {[%emt 0:17:49]} 14. Qxh6 {[%emt 0:00:13]} Qd7 {[%emt 0:00:09]} 15. b5 {[%emt 0:02:10]} f4 {[%emt 0:10:27]} 16. h3 {[%emt 0:16:08]} c6 {[%emt 0:01:29]} 17. e3 {[%emt 0:03:06]} fxg3 {[%emt 0:04:35]} 18. fxg3 {[%emt 0:00:20]} Qe7 {[%emt 0:00:16]} 19. bxc6 {[%emt 0:11:09]} bxc6 {[%emt 0:00:02]} 20. c5 {[%emt 0:03:30]} dxc5 {[%emt 0:07:44]} 21. Qg5 {[%emt 0:00:11]} Qxg5 {[%emt 0:00:31]} 22. Nxg5 {[%emt 0:00:06]} Nd7 {[%emt 0:00:06]} 23. Nce4 {[%emt 0:03:28]} Ng7 {[%emt 0:10:13]} 24. Rxf8+ {[%emt 0:04:47]} Rxf8 {[%emt 0:00:02]} 25. Nxc5 {[%emt 0:00:13]} Nxc5 {[%emt 0:04:05]} 26. Rxc5 {[%emt 0:00:02]} Rd8 {[%emt 0:00:14]} 27. Rc3 {[%emt 0:06:23]} Nf5 {[%emt 0:01:24]} 28. Kf2 {[%emt 0:03:56]} Rf8 {[%emt 0:05:05]} 29. g4 {[%emt 0:00:50]} (29. Rxc6 $2 Nd4+ 30. Ke1 Nxc6 $19) 29... Ne7+ {[%emt 0:06:02]} 30. Ke2 {[%emt 0:02:48]} Rb8 {[%emt 0:00:38] [#]} 31. Ra3 $1 {[%emt 0:00:27]} Rb7 {[%emt 0:02:55]} 32. e4 {[%emt 0:01:52]} c5 {[%emt 0:06:25]} 33. Ra5 {[%emt 0:05:19]} Rb2+ {[%emt 0:09:10]} 34. Ke3 {[%emt 0:00:47]} Rc2 {[%emt 0:00:02]} 35. Ra6 {[%emt 0:00:08]} (35. Rxa7 $6 Nc6 36. Ra8+ (36. Rxh7 Nd4) 36... Kg7 $14) 35... c4 {[%emt 0:01:37]} 36. Nf3 {[%emt 0:05:22]} (36. Rxa7 Nc6 37. Ra8+ (37. Rxh7 c3 $11) 37... Kg7 $16) 36... Kf8 {[%emt 0:08:33]} 37. g5 {[%emt 0:05:51]} c3 {[%emt 0:02:28]} (37... Nc8 $16 38. Nxe5 cxd3 39. Nxd3 (39. Kxd3 Rh2 $16) 39... Rg2) 38. Nxe5 {[%emt 0:02:38]} Rh2 {[%emt 0:01:18]} 39. Ra5 {[%emt 0:07:46]} (39. Rxa7 Nc6 40. Nxc6 c2 41. Ra8+ Kg7 42. Ra7+ Kf8 43. Ra8+ Kg7 44. Ra7+ Kf8 $11) 39... Rxh3+ {[%emt 0:01:14]} 40. Nf3 {[%emt 0:00:19]} (40. Kf4 $18) 40... h6 $16 {[%emt 0:04:44]} 41. gxh6 {[%emt 0:00:09]} (41. Rxa7 Nc6 42. Rc7 Ne5 43. gxh6 (43. Rc8+ Ke7 $17) 43... Nxf3 44. Rxc3 Ne5+ 45. Kd4 Nf7 $11) 41... c2 {[%emt 0:01:45]} 42. Rc5 {[%emt 0:00:01]} (42. Rxa7 c1=Q+ (42... c1=B+ 43. Ke2 $17) 43. Ke2 Qc2+ (43... Qxh6 44. Ra8+ Kg7 45. Ra3 Qf4 46. d4 Qxe4+ 47. Kd2 Rg3 48. Re3 Rg2+ 49. Kc3 Qxe3+ 50. Kb4 Rb2+ 51. Kc4 Qc1+ 52. Kd3 Qc2+ 53. Ke3 Nd5#) (43... Rxh6 $2 44. Rb7 $19) 44. Ke3 Qc5+ (44... Rxh6 $2 45. Ra6 $19) 45. Ke2 Qxa7 (45... Qc2+ 46. Ke3 Qc5+ 47. Kf4 g5+ 48. Kg4 Qc8+ 49. Rd7 Qxd7+ 50. Kxg5 Nd5 51. exd5 Rxf3 52. Kh4 Qf5 53. d6 Rh3#) 46. a3 Qb6 (46... Qxa3 47. h7 Qb2+ 48. Ke3 Rxh7 49. e5 Nf5+ 50. Ke4 Qe2+ 51. Kd5 Qxf3+ 52. Kc4 Qc6+ 53. Kb3 Rb7+ 54. Ka3 Qa6#) (46... Rxh6 47. a4 Qc5 48. Kd2 Qf2+ 49. Kc3 Rh1 50. Nd4 Rc1+ 51. Nc2 Qxc2+ 52. Kb4 Nc6+ 53. Kb5 Rb1+ 54. Ka6 Qxa4#) 47. h7 Qb2+ (47... Rxh7 48. a4 Qb2+ 49. Ke3 Rh3 50. a5 Nc6 51. e5 Qg2 52. d4 Qxf3+ 53. Kd2 Rh2+ 54. Ke1 Qh1#) 48. Ke3 Rxh7 (48... Qxa3 49. Kf4 Qc1+ 50. Kg4 Qh6 51. h8=Q+ Qxh8 52. Kf4 Qf6+ 53. Ke3 Rxf3+ 54. Ke2 Rf2+ 55. Ke1 Qf3 56. e5 Qe2#) 49. a4 Qc1+ 50. Kf2 Rh3 51. a5 Qf4 52. Ke2 Qxf3+ (52... Rxf3 53. d4 Qe3+ 54. Kd1 Rf2 55. e5 Qd2#) 53. Kd2 Qxd3+ 54. Kc1 Rh2 55. e5 Qf1#) 42... g5 {[%emt 0:00:09]} 43. Kf2 {[%emt 0:01:22]} (43. Rxc2 g4 44. Kf4 (44. Rf2 $2 Ke8 $19) 44... gxf3 $17 (44... Rxf3+ 45. Kxg4 Rf6 46. Kh5 $11)) 43... g4 {[%emt 0:00:05]} 44. Nd4 {[%emt 0:00:42]} (44. Ne1 $16) 44... Ng6 {[%emt 0:00:59]} 45. Nxc2 {[%emt 0:00:37]} Rxd3 {[%emt 0:00:30]} (45... Rf3+ $14 46. Ke2 Nf4+ 47. Kd2 Rxd3+ 48. Ke1 Kg8) 46. Rf5+ {[%emt 0:00:42]} (46. Rg5 $18 Rf3+ 47. Ke2) 46... Kg8 $14 {[%emt 0:00:10]} 47. Rg5 {[%emt 0:00:32]} Kh7 {[%emt 0:00:31]} 48. Ne3 {[%emt 0:00:03]} (48. Rxg4 $2 {is the wrong capture.} Rd2+ (48... Kxh6 49. Rg2 $14) 49. Ke3 Rxc2 $19) 48... Kxh6 {[%emt 0:00:16]} 49. Rxg4 {[%emt 0:00:21]} Rd2+ {[%emt 0:00:06]} 50. Ke1 {[%emt 0:00:31]} Rxa2 {[%emt 0:00:05]} 51. Nf5+ {[%emt 0:00:14]} Kh5 {[%emt 0:00:10]} 52. Rg3 {[%emt 0:00:02]} Ra4 {[%emt 0:00:31]} 53. Ng7+ {[%emt 0:00:03]} Kh6 {[%emt 0:00:04]} 54. Nf5+ {[%emt 0:00:02]} Kh5 {[%emt 0:00:04]} 55. Ng7+ {[%emt 0:00:03]} Kh6 {[%emt 0:00:05]} 56. Nf5+ {[%emt 0:00:01]} Kh5 {[%emt 0:00:12]} 1/2-1/2

[Event "GCT 11th Sinquefield Cup 2024"]
[Site "Saint Louis"]
[Date "2024.08.26"]
[Round "7.1"]
[White "Vachier-Lagrave, Maxime"]
[Black "Giri, Anish"]
[Result "1/2-1/2"]
[ECO "C67"]
[WhiteElo "2721"]
[BlackElo "2746"]
[Annotator "TA"]
[PlyCount "64"]
[EventDate "2024.08.09"]
[EventType "tourn"]
[EventCountry "USA"]
[SourceTitle "playchess.com"]
[Source "ChessBase"]
[SourceQuality "1"]
[TimeControl "7200+30"]

{[%evp 17,64,12,3,0,0,26,5,0,0,0,9,0,2,8,0,12,0,-6,0,0,0,0,0,-2,0,0,0,0,0,0,0,0,0,0,0,0,0,0,0,0,0,0,0,0,0,0,0,0,0]} 1. e4 {[%emt 0:00:04]} e5 {[%emt 0:00:03]} 2. Nf3 {[%emt 0:00:05]} Nc6 {[%emt 0:00:03]} 3. Bb5 {[%emt 0:00:04]} Nf6 {[%emt 0:00:04]} 4. O-O {[%emt 0:00:06]} Nxe4 {[%emt 0:00:02]} 5. d4 {[%emt 0:00:04]} Nd6 {[%emt 0:00:03]} 6. Bxc6 {[%emt 0:00:03]} dxc6 {[%emt 0:00:04]} 7. dxe5 {[%emt 0:00:05]} Nf5 {[%emt 0:00:01]} 8. Qxd8+ {[%emt 0:00:08]} Kxd8 {[%emt 0:00:04]} 9. Nc3 {[%emt 0:00:05]} Be7 {[%emt 0:00:03]} 10. h3 {[%emt 0:00:06]} Nh4 {[%emt 0:00:14] aiming for ...Nxf3+.} 11. Nxh4 {[%emt 0:00:15]} Bxh4 {[%emt 0:00:03]} 12. Re1 {[%emt 0:00:27] The position is equal.} a5 {[%emt 0:00:57]} 13. Be3 {[%emt 0:04:34]} Be7 {[%emt 0:23:08]} 14. Rad1+ {[%emt 0:09:59]} Ke8 {[%emt 0:00:14]} 15. Ne2 {[%emt 0:01:12][%cal Bc3e2,Be2d4,Bd4f3,Bf3e5][%mdl 32]} a4 {[%emt 0:02:21]} 16. Nd4 {[%emt 0:10:45]} Ra5 {[%emt 0:24:57]} 17. e6 {[%emt 0:17:23]} Bd6 {[%emt 0:03:54] Repels Bf4} 18. exf7+ {[%emt 0:11:30]} Kxf7 {[%emt 0:00:04]} 19. Nf3 {[%emt 0:00:27]} Re8 {[%emt 0:03:14]} 20. Bd4 {[%emt 0:00:08]} Rxe1+ {[%emt 0:02:31]} 21. Rxe1 {[%emt 0:00:15]} Rf5 {[%emt 0:09:01]} 22. b3 {[%emt 0:04:28]} axb3 {[%emt 0:02:58]} 23. axb3 {[%emt 0:00:34]} c5 {[%emt 0:00:21]} 24. Ne5+ {[%emt 0:02:37]} Kg8 {[%emt 0:03:18]} 25. Bb2 {[%emt 0:00:08]} Rf8 {[%emt 0:00:17]} 26. Nc4 {[%emt 0:00:15]} Bf5 {[%emt 0:00:07]} 27. Nxd6 {[%emt 0:00:13]} cxd6 $11 {[%emt 0:00:02] KRB-KRB} 28. Re7 {[%emt 0:00:07][%csl LRb7,LRg7]} Rf7 {[%emt 0:00:02]} 29. Re8+ {[%emt 0:00:04]} Rf8 {[%emt 0:00:02]} 30. Re7 {[%emt 0:00:03]} Rf7 {[%emt 0:00:01]} 31. Re8+ {[%emt 0:00:04]} Rf8 {[%emt 0:00:02]} 32. Re7 {[%emt 0:00:13]} Rf7 {[%emt 0:00:03] A rather calm draw.   Weighted Error Value: White=0.01 (flawless) /Black=0.01 (flawless) .  OK:         	White=11    	Black=11     Best:        	---       	Black=2} 1/2-1/2